lending/lending_fUSD_20240110
["ID","MTS","AMOUNT","RATE_DAILY","PERIOD"]
[311118349,1704918632876,-627.91732101,0.00022539,2]
[311118350,1704918632887,-527.38210729,0.00022539,2]
[311118351,1704918632898,-160.39659426,0.0002254,2]
[311118352,1704918632909,-151.78,0.00022541,2]
[311118353,1704918632920,-10508.70102665,0.00022548,2]
[311118354,1704918632930,-2124.73029965,0.00022549,2]
[311118355,1704918632943,-335.00350038,0.00022549,2]
[311118356,1704918632956,-483.0340252,0.00022549,2]
[311118357,1704918632967,-206.0,0.00022549,2]
[311118358,1704918632977,-150.0,0.00022549,2]
[311118359,1704918632988,-788.1987748,0.0002255,2]
[311118360,1704918633002,-5239.58879323,0.0002255,2]
[311118361,1704918633014,-155.48396173,0.00022571,2]
[311118362,1704918633027,-580.66182185,0.00022571,2]
[311118363,1704918633038,-2605.00013988,0.00022571,2]
[311118364,1704918633048,-500.54284243,0.00022571,2]
[311118365,1704918633059,-1439.59427958,0.00022571,2]
[311118366,1704918633070,-2485.83575841,0.00022571,2]
[311118367,1704918633080,-376.11195413,0.00022571,2]
[311118368,1704918633089,-465.0,0.00022571,2]
[311118369,1704918633101,-435.21804576,0.00022571,2]
[311118370,1704918633115,-155.0,0.00022572,2]
[311118371,1704918633128,-277.45144943,0.00022572,2]
[311118372,1704918633141,-1886.4927337,0.00022572,2]
[311118373,1704918633153,-16597.23703783,0.00022573,2]
[311118374,1704918633164,-469.83729603,0.00022585,2]
[311118375,1704918633176,-469.83729603,0.00022586,2]
[311118376,1704918633187,-93019.80817769,0.00022595,2]
[311118377,1704918633206,-562.34159793,0.00022595,2]
[311118378,1704918633219,-1463.55396328,0.00022595,2]
[311118380,1704918633232,-267.96954897,0.00022595,2]
[311118382,1704918633245,-1604.57608936,0.00022595,2]
[311118384,1704918633257,-3325.42039862,0.00022595,2]
[311118387,1704918633268,-1364.108,0.00022595,2]
[311118388,1704918633281,-4913.59180261,0.00022595,2]
[311118390,1704918633294,-1400.0,0.00022595,2]
[311118391,1704918633317,-861.86098,0.00022595,2]
[311118392,1704918633335,-2933.54519977,0.00022595,2]
[311118393,1704918633349,-12471.0,0.00022595,2]
[311118394,1704918633365,-6855.45001208,0.00022595,2]
[311118395,1704918633377,-498.11106583,0.00022595,2]
[311118396,1704918633388,-23861.80950208,0.00022595,2]
[311118399,1704918633401,-2249.95,0.00022595,2]
[311118402,1704918633414,-271.49471219,0.00022595,2]
[311118405,1704918633426,-91441.06875768,0.00022595,2]
[311118408,1704918633437,-91338.2698091,0.00022595,2]
[311118413,1704918633455,-248284.36300905,0.00022595,2]
[311118416,1704918633467,-242806.66466073,0.00022595,2]
[311118421,1704918633478,-223538.35815409,0.00022595,2]
[311118424,1704918633487,-445435.67920871,0.00022596,2]
[311118427,1704918633497,-978.27609,0.00022596,2]
[311118430,1704918633508,-287.75294492,0.00022596,2]
[311118433,1704918633521,-1069.12322619,0.00022596,2]
[311118438,1704918633532,-1529.62874683,0.00022596,2]
[311118440,1704918633548,-7368.5116722,0.00022596,2]
[311118461,1704918638014,-230.2259009,0.00022536,2]
[311118462,1704918638024,-62172.91632815,0.00022596,2]
[311118463,1704918638036,-8336.81079373,0.00022596,2]
[311118464,1704918638048,-49100.0,0.00022596,2]
[311118465,1704918638073,-241108.25478927,0.00022596,2]
[311118466,1704918638082,-484.8449,0.00022596,2]
[311118467,1704918638092,-24829.6222,0.00022596,2]
[311118468,1704918638101,-2500.0,0.00022598,2]
[311118469,1704918638112,-214.62503963,0.00022599,2]
[311118470,1704918638122,-151.78,0.00022605,2]
[311118471,1704918638131,-151.78,0.00022668,2]
[311118472,1704918638141,-176.01,0.00022695,2]
[311118473,1704918638151,-522.85587045,0.00022696,2]
[311118474,1704918638161,-1201.14620244,0.00022696,2]
[311118475,1704918638170,-383.39980938,0.00022696,2]
[311118476,1704918638179,-131756.88211217,0.00022696,2]
[311118477,1704918638188,-5682.69809085,0.00022696,2]
[311118478,1704918638198,-198.82869337,0.00022696,2]
[311118479,1704918638209,-162.04245972,0.00022697,2]
[311118480,1704918638220,-281.11606973,0.00022697,2]
[311118481,1704918638231,-2104.03827927,0.00022697,2]
[311118482,1704918638240,-219.97433261,0.00022697,2]
[311118483,1704918638249,-11657.61542784,0.00022697,2]
[311118484,1704918638259,-234.70920108,0.00022697,2]
[311118485,1704918638268,-177.5299,0.00022698,2]
[311118486,1704918638277,-795.882,0.00022698,2]
[311118487,1704918638286,-15445.0131,0.00022699,2]
[311118488,1704918638296,-151.78,0.00022732,2]
[311118489,1704918638307,-168.21,0.00022736,2]
[311118490,1704918638318,-151.78,0.00022796,2]
[311118491,1704918638329,-155.0,0.00022796,2]
[311118492,1704918638338,-1415.24839978,0.00022796,2]
[311118493,1704918638347,-1982.38,0.00022796,2]
[311118494,1704918638358,-3741.64,0.00022796,2]
[311118495,1704918638367,-262.71925405,0.00022796,2]
[311118496,1704918638377,-548.85,0.00022797,2]
[311118497,1704918638386,-2000.0,0.00022844,2]
[311118498,1704918638397,-151.78,0.0002286,2]
[311118499,1704918638406,-1000.0,0.00022898,2]
[311118500,1704918638417,-151.78,0.00022923,2]
[311118501,1704918638426,-324.67,0.00022924,2]
[311118502,1704918638436,-151.78,0.00022987,2]
[311118504,1704918638445,-151.78,0.00023051,2]
[311118505,1704918638455,-202.18478343,0.00023066,2]
[311118506,1704918638464,-8694.88802435,0.00023066,2]
[311118507,1704918638473,-151.78,0.00023115,2]
[311118508,1704918638482,-158.42,0.00023125,2]
[311118509,1704918638490,-1000.0,0.00023166,2]
[311118510,1704918638499,-513.12,0.00023166,2]
[311118512,1704918638508,-151.78,0.00023179,2]
[311118514,1704918638517,-176.01,0.00023243,2]
[311118516,1704918638527,-1000.0,0.00023341,2]
[311118518,1704918638537,-250.7665,0.00023341,2]
[311118519,1704918638546,-158.42,0.00023668,2]
[311118520,1704918638556,-351.86,0.00023791,2]
[311118522,1704918638566,-324.67,0.00024015,2]
[311118524,1704918638575,-513.12,0.00024145,2]
[311118526,1704918638584,-158.42,0.00024212,2]
[311118528,1704918638594,-802.62,0.00024334,2]
[311118529,1704918638602,-932.67013325,0.00024368,2]
[311118531,1704918638614,-1617.81682335,0.00024438,2]
[311118532,1704918638624,-150.0,0.00024538,2]
[311118533,1704918638633,-250.0,0.00024658,2]
[311118534,1704918638643,-158.42,0.00024756,2]
[311118535,1704918638652,-209.0,0.00024804,2]
[311118536,1704918638662,-350.0,0.00025,3]
[311118537,1704918638671,-324.67,0.00025107,2]
[311118538,1704918638681,-513.12,0.00025123,2]
[311118539,1704918638691,-158.42,0.000253,2]
[311118540,1704918638701,-158.42,0.00025843,2]
[311118541,1704918638712,-1617.81682324,0.00025844,2]
[311118542,1704918638722,-1000.0,0.00026062,2]
[311118543,1704918638732,-150.0,0.00026079,2]
[311118544,1704918638742,-513.12,0.00026102,2]
[311118545,1704918638753,-324.67,0.00026199,2]
[311118546,1704918638764,-158.42,0.00026387,2]
[311118547,1704918638774,-1162.38,0.00026575,2]
[311118548,1704918638785,-802.62,0.00026598,2]
[311118549,1704918638797,-384.6,0.00026611,2]
[311118550,1704918638808,-214.62503961,0.00026719,2]
[311118551,1704918638819,-384.6,0.00026751,2]
[311118552,1704918638830,-155.24194201,0.00026818,2]
[311118553,1704918638840,-384.6,0.00026891,2]
[311118554,1704918638849,-158.42,0.00026931,2]
[311118555,1704918638859,-414.56575411,0.00027,2]
[311118556,1704918638868,-400.0,0.00027,3]
[311118557,1704918638878,-384.6,0.00027031,2]
[311118558,1704918638889,-513.12,0.0002708,2]
[311118559,1704918638900,-384.6,0.00027171,2]
[311118560,1704918638910,-1617.81682324,0.00027249,2]
[311118561,1704918638922,-150.0,0.00027278,2]
[311118562,1704918638933,-384.6,0.00027311,2]
[311118563,1704918638944,-155.0,0.00027397,2]
[311118564,1704918638954,-520.00185062,0.00027397,2]
[311118565,1704918638965,-3908.55937088,0.00027397,2]
[311118566,1704918638978,-6066.31265179,0.00027397,2]
[311118567,1704918638988,-155.0,0.00027397,2]
[311118568,1704918638999,-670.83022847,0.00027397,2]
[311118569,1704918639010,-176.54601069,0.00027397,2]
[311118570,1704918639021,-200.0,0.00027397,2]
[311118571,1704918639032,-507.91231117,0.00027397,2]
[311118572,1704918639042,-250.0,0.00027397,2]
[311118573,1704918639052,-2500.0,0.00027397,4]
[311118574,1704918639062,-384.6,0.00027451,2]
[311118575,1704918639073,-158.42,0.00027475,2]
[311118576,1704918639084,-384.6,0.00027591,2]
[311118577,1704918639094,-384.6,0.00027731,2]
[311118578,1704918639104,-384.6,0.00027871,2]
[311118579,1704918639116,-3451.47310745,0.00028,2]
[311118580,1704918639127,-384.6,0.00028011,2]
[311118581,1704918639139,-513.12,0.00028059,2]
[311118582,1704918639152,-363.41500835,0.00028093,2]
[311118583,1704918639163,-384.6,0.00028151,2]
[311118584,1704918639174,-384.6,0.00028291,2]
[311118585,1704918639185,-168.21,0.0002842,2]
[311118586,1704918639196,-384.6,0.00028432,2]
[311118587,1704918639205,-384.6,0.00028572,2]
[311118588,1704918639215,-1617.81682324,0.00028655,2]
[311118589,1704918639225,-384.6,0.00028712,2]
[311118590,1704918639235,-384.6,0.00028852,2]
[311118591,1704918639246,-802.62,0.00028862,2]
[311118592,1704918639256,-1000.0,0.00028958,2]
[311118593,1704918639266,-384.6,0.00028992,2]
[311118594,1704918639277,-450.0,0.00029,3]
[311118595,1704918639288,-513.12,0.00029037,2]
[311118596,1704918639298,-384.6,0.00029132,2]
[311118597,1704918639309,-384.6,0.00029272,2]
[311118598,1704918639320,-20334.0,0.000294,2]
[311118599,1704918639329,-3137.0,0.000294,2]
[311118600,1704918639339,-1000.0,0.00029416,2]
[311118601,1704918639350,-203.0,0.00029513,2]
[311118602,1704918639361,-239.09408116,0.00029799,4]
[311118603,1704918639371,-360.65291263,0.000299,2]
[311118604,1704918639385,-360.65291261,0.000299,2]
[311118605,1704918639394,-360.65291261,0.000299,2]
[311118606,1704918639405,-360.65291261,0.000299,2]
[311118607,1704918639414,-360.65291261,0.000299,2]
[311118608,1704918639424,-360.65291261,0.000299,2]
[311118609,1704918639435,-360.65291261,0.000299,2]
[311118610,1704918639445,-360.65291261,0.000299,2]
[311118611,1704918639455,-360.65291261,0.000299,2]
[311118612,1704918639464,-360.65291261,0.000299,2]
[311118613,1704918639483,-155.0,0.0003,2]
[311118614,1704918639494,-513.12,0.00030016,2]
[311118615,1704918639504,-150.0,0.00030018,2]
[311118616,1704918639513,-1617.81682324,0.00030061,2]
[311118617,1704918639522,-153.84,0.00030137,2]
[311118618,1704918639532,-330.78,0.00030414,2]
[311118619,1704918639541,-214.62503961,0.00030839,2]
[311118620,1704918639551,-513.12,0.00030994,2]
[311118621,1704918639561,-500.0,0.00031,3]
[311118623,1704918639571,-1089.0,0.00031,2]
[311118624,1704918639580,-322.93,0.00031,2]
[311118625,1704918639590,-153.84,0.0003105,2]
[311118626,1704918639599,-802.62,0.00031126,2]
[311118627,1704918639609,-165.19525941,0.00031198,2]
[311118628,1704918639619,-1468.00400741,0.000312,2]
[311118629,1704918639628,-1617.81682324,0.00031466,3]
[311118630,1704918639638,-8694.88802433,0.00031483,2]
[311118631,1704918639648,-194.31,0.00031507,2]
[311118632,1704918639657,-203.0,0.00031545,5]
[311118633,1704918639667,-3571.6133736,0.000318,2]
[311118634,1704918639676,-1000.0,0.00031854,2]
[311118635,1704918639686,-153.84,0.00031963,2]
[311118636,1704918639695,-513.12,0.00031973,2]
[311118637,1704918639705,-150.49609074,0.00032758,2]
[311118638,1704918639714,-1617.81682324,0.00032872,4]
[311118639,1704918639723,-153.84,0.00032877,2]
[311118640,1704918639732,-323.04,0.00032877,15]
[311118641,1704918639742,-8114.66,0.0003288,2]
[311118642,1704918639751,-8114.66,0.0003288,2]
[311118643,1704918639761,-8114.66,0.0003288,2]
[311118644,1704918639772,-8114.66,0.0003288,2]
[311118645,1704918639782,-8114.66,0.0003288,2]
[311118646,1704918639791,-513.12,0.00032951,2]
[311118647,1704918639801,-49219.83954982,0.00033,2]
[311118648,1704918639811,-550.0,0.00033,3]
[311118649,1704918639821,-802.62,0.0003339,2]
[311118650,1704918639830,-5000.0,0.000335,10]
[311118651,1704918639840,-203.0,0.00033578,9]
[311118652,1704918639849,-2169.821,0.00033608,2]
[311118653,1704918639862,-2900.0,0.00033608,2]
[311118654,1704918639871,-10354.462,0.00033608,2]
[311118655,1704918639880,-525.218,0.00033608,2]
[311118656,1704918639890,-834.0,0.00033608,2]
[311118657,1704918639899,-1251.0,0.00033608,2]
[311118658,1704918639909,-1234.0,0.00033609,2]
[311118659,1704918639918,-2048.253,0.0003361,2]
[311118660,1704918639928,-1138.0,0.0003361,2]
[311118661,1704918639938,-363.41500835,0.0003369,2]
[311118662,1704918639947,-153.84,0.0003379,2]
[311118663,1704918639956,-513.12,0.0003393,2]
[311118664,1704918639965,-1000.0,0.00034,4]
[311118665,1704918639974,-381.0671519,0.00034058,2]
[311118666,1704918639984,-168.21,0.00034104,2]
[311118667,1704918639993,-1617.81682324,0.00034277,6]
[311118668,1704918640002,-4367.66,0.00034382,2]
[311118669,1704918640011,-155.0,0.00034519,4]
[311118670,1704918640021,-11128.09792183,0.00034519,10]
[311118671,1704918640030,-1658.83,0.00034521,2]
[311118672,1704918640039,-180.0,0.00034658,2]
[311118674,1704918640049,-153.84,0.00034703,2]
[311118676,1704918640059,-1000.0,0.0003475,2]
[311118678,1704918640068,-1000.0,0.000348,2]
[311118679,1704918640078,-5000.0,0.000349,2]
[311118680,1704918640087,-1534.08156414,0.000349,2]
[311118681,1704918640097,-1534.08156412,0.000349,2]
[311118682,1704918640106,-1534.08156412,0.000349,2]
[311118683,1704918640119,-1534.08156412,0.000349,2]
[311118684,1704918640128,-1534.08156412,0.000349,2]
[311118685,1704918640137,-1534.08156412,0.000349,2]
[311118686,1704918640146,-1534.08156412,0.000349,2]
[311118687,1704918640155,-1534.08156412,0.000349,2]
[311118689,1704918640165,-18123.6709077,0.00034907,10]
[311118691,1704918640174,-10656.23875991,0.00034907,10]
[311118693,1704918640183,-2423.65605742,0.00034907,10]
[311118695,1704918640192,-242.36560574,0.00034907,10]
[311118697,1704918640201,-2829.66693051,0.00034907,10]
[311118699,1704918640211,-513.12,0.00034908,2]
[311118701,1704918640220,-214.62503961,0.00034958,2]
[311118704,1704918640230,-1041.73814922,0.00034999,4]
[311118706,1704918640238,-100000.0,0.00035,2]
[311118709,1704918640248,-155.0,0.00035,2]
[311118711,1704918640257,-1000.0,0.00035,2]
[311118713,1704918640267,-16417.45689362,0.00035,2]
[311118715,1704918640276,-5000.0,0.00035,2]
[311118717,1704918640285,-3412.08049558,0.00035,3]
[311118719,1704918640297,-154.75908958,0.00035,5]
[311118720,1704918640307,-1394.42518964,0.00035,2]
[311118721,1704918640316,-807.864405,0.00035,3]
[311118722,1704918640325,-600.0,0.00035,3]
[311118723,1704918640334,-1534.08156412,0.0003532,2]
[311118724,1704918640343,-203.0,0.0003561,13]
[311118725,1704918640353,-153.84,0.00035616,2]
[311118726,1704918640365,-150.0,0.00035616,2]
[311118727,1704918640375,-802.62,0.00035653,2]
[311118728,1704918640385,-1617.81682324,0.00035683,8]
[311118729,1704918640394,-184.0,0.00035768,5]
[311118730,1704918640403,-1658.83,0.00035798,2]
[311118731,1704918640413,-178.0,0.00035802,2]
[311118732,1704918640423,-800.0,0.00035878,10]
[311118733,1704918640433,-513.12,0.00035886,2]
[311118734,1704918640443,-157.65776668,0.0003591,2]
[311118735,1704918640452,-553.406913,0.00035974,8]
[311118736,1704918640462,-553.40691291,0.00035974,8]
[311118737,1704918640471,-553.40691291,0.00035974,8]
[311118738,1704918640481,-553.40691291,0.00035974,8]
[311118739,1704918640490,-100000.0,0.00036,3]
[311118740,1704918640499,-150.96,0.00036,2]
[311118741,1704918640509,-150.96,0.00036,2]
[311118742,1704918640518,-150.96,0.00036,2]
[311118743,1704918640527,-150.96,0.00036,2]
[311118744,1704918640536,-150.96,0.00036,2]
[311118745,1704918640546,-1348.56768609,0.00036089,2]
[311118746,1704918640555,-1348.56768602,0.00036089,2]
[311118747,1704918640565,-1348.56768602,0.00036089,2]
[311118748,1704918640574,-1348.56768602,0.00036089,2]
[311118749,1704918640585,-1348.56768602,0.00036089,2]
[311118750,1704918640595,-1348.56768602,0.00036089,2]
[311118751,1704918640605,-1348.56768602,0.00036089,2]
[311118752,1704918640615,-1000.0,0.00036214,10]
[311118753,1704918640625,-168.20771825,0.00036214,8]
[311118754,1704918640634,-176.92253009,0.00036214,8]
[311118755,1704918640644,-840.10368856,0.00036214,8]
[311118756,1704918640654,-183.88864695,0.00036214,8]
[311118757,1704918640664,-380.02170929,0.00036214,8]
[311118758,1704918640674,-293.3929601,0.00036214,8]
[311118759,1704918640683,-286.22559509,0.00036214,8]
[311118760,1704918640697,-199.49540765,0.00036508,2]
[311118761,1704918640706,-443.38238154,0.00036508,2]
[311118762,1704918640716,-553.40691291,0.0003651,8]
[311118763,1704918640726,-153.84,0.0003653,2]
[311118764,1704918640736,-150.0,0.00036554,2]
[311118765,1704918640746,-323.04,0.00036613,15]
[311118766,1704918640755,-513.12,0.00036865,2]
[311118767,1704918640765,-152.91334284,0.00036874,7]
[311118768,1704918640774,-1534.08156412,0.00036899,2]
[311118769,1704918640784,-1000.0,0.000369,2]
[311118770,1704918640793,-183.50048506,0.00036912,7]
[311118771,1704918640803,-153.22453527,0.0003694,7]
[311118772,1704918640813,-183.50048506,0.00036949,7]
[311118773,1704918640822,-150.0,0.00036975,30]
[311118774,1704918640832,-304.949637,0.00036975,30]
[311118775,1704918640842,-1965.990009,0.00036975,30]
[311118776,1704918640852,-100000.0,0.00037,2]
[311118777,1704918640863,-8000.0,0.00037,2]
[311118778,1704918640872,-1581.88,0.00037,3]
[311118779,1704918640883,-1581.88,0.00037,3]
[311118780,1704918640893,-1581.88,0.00037,3]
[311118781,1704918640902,-1581.88,0.00037,3]
[311118782,1704918640912,-1581.88,0.00037,3]
[311118783,1704918640921,-1581.88,0.00037,3]
[311118784,1704918640931,-1581.88,0.00037,3]
[311118785,1704918640941,-1581.88,0.00037,3]
[311118786,1704918640950,-1581.88,0.00037,3]
[311118787,1704918640960,-1581.88,0.00037,3]
[311118788,1704918640973,-1581.88,0.00037,3]
[311118789,1704918640982,-1581.88,0.00037,3]
[311118790,1704918640992,-1581.88,0.00037,3]
[311118791,1704918641002,-1581.88,0.00037,3]
[311118792,1704918641012,-1581.88,0.00037,3]
[311118793,1704918641022,-1581.88,0.00037,3]
[311118794,1704918641031,-1581.88,0.00037,3]
[311118795,1704918641041,-1581.88,0.00037,3]
[311118796,1704918641051,-1581.88,0.00037,3]
[311118797,1704918641061,-1581.88,0.00037,3]
[311118798,1704918641071,-650.0,0.00037,3]
[311118799,1704918641080,-157.58,0.00037,3]
[311118800,1704918641090,-157.58,0.00037,3]
[311118801,1704918641100,-155.0,0.00037,2]
[311118802,1704918641112,-150.80834968,0.00037014,7]
[311118803,1704918641122,-183.50048506,0.00037043,7]
[311118804,1704918641132,-1348.56768602,0.00037056,2]
[311118805,1704918641141,-1658.83,0.00037075,2]
[311118806,1704918641151,-672.83258779,0.00037082,2]
[311118807,1704918641161,-183.50048506,0.00037085,7]
[311118808,1704918641171,-1617.81682324,0.00037089,10]
[311118809,1704918641181,-153.22453527,0.00037113,7]
[311118810,1704918641190,-155.92,0.00037138,2]
[311118811,1704918641200,-183.50048506,0.0003734,7]
[311118812,1704918641210,-153.22453527,0.00037374,7]
[311118813,1704918641219,-153.84,0.00037443,2]
[311118814,1704918641229,-150.0,0.00037491,2]
[311118815,1704918641238,-1000.0,0.000375,2]
[311118816,1704918641248,-4027.39052519,0.000375,2]
[311118817,1704918641257,-334.8036091,0.00037561,10]
[311118818,1704918641267,-1024.47551182,0.00037589,3]
[311118819,1704918641277,-150.80834968,0.00037625,7]
[311118820,1704918641287,-203.0,0.00037643,17]
[311118821,1704918641296,-183.50048506,0.00037713,7]
[311118822,1704918641306,-150.0,0.00037722,2]
[311118823,1704918641316,-150.0,0.00037782,2]
[311118824,1704918641325,-1175.58919874,0.00037797,2]
[311118825,1704918641335,-53102.0,0.000378,7]
[311118826,1704918641345,-151.46528462,0.000378,2]
[311118828,1704918641355,-1162.38,0.00037808,2]
[311118831,1704918641366,-183.50048506,0.00037845,7]
[311118833,1704918641376,-150.0,0.00037863,2]
[311118835,1704918641386,-153.22453527,0.00037863,7]
[311118837,1704918641395,-3635.0,0.0003789,3]
[311118839,1704918641406,-150.96,0.0003789,2]
[311118841,1704918641416,-469.83729603,0.0003789,2]
[311118843,1704918641426,-300.0,0.00037892,2]
[311118845,1704918641436,-150.0,0.000379,2]
[311118847,1704918641445,-151.0,0.000379,7]
[311118849,1704918641456,-1996.98,0.000379,2]
[311118851,1704918641465,-615293.219738,0.000379,2]
[311118852,1704918641475,-313.98,0.000379,2]
[311118855,1704918641484,-269.739418,0.000379,7]
[311118856,1704918641494,-151.0,0.000379,7]
[311118859,1704918641504,-802.62,0.00037917,2]
[311118861,1704918641514,-1261.63646539,0.00037935,2]
[311118862,1704918641523,-150.0,0.00037992,2]
[311118864,1704918641533,-94496.69961164,0.00038,3]
[311118907,1704918641955,-5503.30038836,0.00038,3]
[311118909,1704918641964,-5208.8088181,0.00038,30]
[311118911,1704918641974,-154.0,0.00038,2]
[311118913,1704918641983,-162.0,0.00038,2]
[311118914,1704918641992,-300.0,0.00038003,2]
[311118915,1704918642002,-150.0,0.00038055,2]
[311118916,1704918642011,-159.49727413,0.00038069,7]
[311118917,1704918642020,-50641.62671364,0.000381,2]
[311118918,1704918642032,-4215.13889016,0.000381,2]
[311118919,1704918642055,-25114.945651,0.000381,2]
[311118920,1704918642097,-403.09841461,0.000381,2]
[311118921,1704918642108,-56319.44882059,0.000381,2]
[311118923,1704918642119,-150.0,0.00038115,2]
[311118925,1704918642129,-150.0,0.00038118,2]
[311118927,1704918642138,-151.46528445,0.00038147,2]
[311118929,1704918642147,-152.91334284,0.00038151,7]
[311118931,1704918642157,-443.38238152,0.00038204,2]
[311118933,1704918642166,-153.22453527,0.00038213,7]
[311118935,1704918642176,-150.80834968,0.00038222,7]
[311118937,1704918642185,-153.22453527,0.00038225,7]
[311118939,1704918642194,-253.69029815,0.0003824,2]
[311118941,1704918642203,-382.20510814,0.00038241,4]
[311118943,1704918642213,-150.0,0.00038249,2]
[311118946,1704918642223,-1261.63646539,0.00038252,2]
[311118948,1704918642232,-300.0,0.00038282,2]
[311118950,1704918642242,-150.0,0.00038285,2]
[311118952,1704918642252,-150.0,0.0003833,2]
[311118953,1704918642261,-150.0,0.00038331,2]
[311118956,1704918642271,-153.22453527,0.00038331,7]
[311118958,1704918642280,-150.0,0.0003834,2]
[311118960,1704918642289,-150.0,0.00038342,2]
[311118962,1704918642298,-1352.86,0.00038346,10]
[311118964,1704918642307,-1127.39,0.00038346,10]
[311118965,1704918642316,-1658.83,0.00038352,2]
[311118968,1704918642326,-150.0,0.00038356,2]
[311118970,1704918642336,-394.02,0.00038356,4]
[311118971,1704918642345,-462.6465137,0.00038356,4]
[311118973,1704918642354,-500.0,0.00038356,4]
[311118976,1704918642364,-666.0,0.00038356,2]
[311118978,1704918642373,-150.5,0.00038356,4]
[311118980,1704918642383,-500.0,0.00038356,4]
[311118982,1704918642392,-500.0,0.00038356,4]
[311118984,1704918642401,-500.0,0.00038356,4]
[311118985,1704918642410,-500.0,0.00038356,4]
[311118987,1704918642420,-174.68194658,0.00038356,4]
[311118989,1704918642429,-500.0,0.00038356,4]
[311118991,1704918642438,-500.0,0.00038356,4]
[311118993,1704918642448,-500.0,0.00038356,4]
[311118995,1704918642457,-160.7,0.00038356,4]
[311118998,1704918642467,-649.76,0.00038356,4]
[311119000,1704918642477,-473.45142009,0.00038356,4]
[311119002,1704918642486,-500.0,0.00038356,4]
[311119004,1704918642498,-500.0,0.00038356,4]
[311119005,1704918642507,-500.0,0.00038356,4]
[311119007,1704918642516,-536.4,0.00038356,4]
[311119010,1704918642526,-500.0,0.00038356,4]
[311119011,1704918642535,-500.0,0.00038356,2]
[311119014,1704918642545,-190.35,0.00038356,4]
[311119018,1704918642554,-500.0,0.00038356,4]
[311119021,1704918642563,-500.0,0.00038356,4]
[311119024,1704918642573,-500.0,0.00038356,4]
[311119026,1704918642582,-457.40152899,0.00038356,4]
[311119028,1704918642592,-500.0,0.00038356,4]
[311119032,1704918642602,-500.89943116,0.00038356,4]
[311119035,1704918642613,-161.5721002,0.00038356,4]
[311119039,1704918642623,-500.0,0.00038356,4]
[311119042,1704918642633,-500.0,0.00038356,4]
[311119045,1704918642643,-622.97,0.00038356,4]
[311119048,1704918642653,-211.14,0.00038356,4]
[311119051,1704918642663,-500.0,0.00038356,4]
[311119053,1704918642672,-500.0,0.00038356,4]
[311119056,1704918642682,-500.0,0.00038356,4]
[311119058,1704918642691,-303.72,0.00038356,4]
[311119060,1704918642700,-1000.0,0.00038356,4]
[311119062,1704918642709,-248.9692498,0.00038356,4]
[311119064,1704918642718,-390.72,0.00038356,4]
[311119066,1704918642728,-500.0,0.00038356,4]
[311119068,1704918642737,-500.0,0.00038356,4]
[311119070,1704918642746,-500.0,0.00038356,4]
[311119074,1704918642755,-564.69,0.00038356,4]
[311119078,1704918642764,-500.0,0.00038356,4]
[311119082,1704918642773,-500.0,0.00038356,4]
[311119083,1704918642783,-500.0,0.00038356,4]
[311119084,1704918642792,-500.0,0.00038356,4]
[311119085,1704918642803,-500.0,0.00038356,4]
[311119087,1704918642812,-500.0,0.00038356,4]
[311119088,1704918642822,-590.83,0.00038356,4]
[311119090,1704918642831,-500.0,0.00038356,4]
[311119092,1704918642840,-623.61,0.00038356,4]
[311119094,1704918642849,-500.0,0.00038356,4]
[311119095,1704918642859,-500.0,0.00038356,4]